Cogmind - Beta 15 @@@ ROGUE MODE // 2025.08.13 @ 22:07:44 Player: AlexTheBox Result: Destroyed by G-47 Trooper with Particle Gun Performance ------------- Evolutions (2) 1000 Regions Visited (3) 600 Robots Destroyed (24) 120 Value Destroyed (508) 508 Prototype IDs (4) 80 Alien Tech Used (0) 0 Bonus (0) 0 TOTAL SCORE: 2308 Bonus ------- None Cogmind --------- Core Integrity 0/550 Matter 168/300 Energy 99/100 System Corruption 2% Temperature Cool (27) Movement Core (350) Ox6 Location -8/Materials Parts ------- > --- POWER (1) -------- (None) > --- PROPULSION (3) --- (None) > --- UTILITY (4) ------ Large Storage Unit > --- WEAPON (3) ------- (None) > --- INVENTORY (15) --- High-capacity Storage Unit Large Matter Pod (0) Large Matter Pod (0) Assault Rifle Light Assault Rifle Light Assault Rifle Gauss Cannon Grenade Launcher Grenade Launcher Grenade Launcher Mining Laser Peak State ------------ > --- POWER ------------ Nuclear Core > --- PROPULSION ------- Light Treads Light Treads Wheel > --- UTILITY ---------- Large Storage Unit Structural Scanner Hardened Light Armor Plating Hardened Light Armor Plating > --- WEAPON ----------- Beam Rifle Light Assault Rifle Maul > --- INVENTORY -------- Nuclear Core High-capacity Storage Unit Terrain Scanner Assault Rifle Light Assault Rifle Light Assault Rifle Grenade Launcher Grenade Launcher Grenade Launcher Rocket Launcher Mining Laser [Rating: 18] Favorites ----------- Power Nuclear Core Engine Ion Engine Power Core Nuclear Core Propulsion Light Treads Treads Light Treads Wheel Compact Wheel Utility Large Storage Unit Device Terrain Scanner Storage Large Storage Unit Processor Signal Interpreter Protection Hardened Light Armor Plating Weapon Light Assault Rifle Energy Gun Beam Rifle Ballistic Gun Light Assault Rifle Launcher Grenade Launcher Impact Weapon Maul Build | -11 -10 -9 -8 ------- Run | Yrd Mat Mat Mat Slots Evolved 4 | . . 2 2 Power . | . . . . Propulsion 1 | . . 1 . Utility 2 | . . . 2 Weapon 1 | . . 1 . Parts Attached 25 | 7 4 9 5 Power 4 | 1 . 2 1 Engine 1 | 1 . . . Core 3 | . . 2 1 Reactor . | . . . . Propulsion 5 | 2 1 2 . Treads 2 | 2 . . . Leg . | . . . . Wheel 3 | . 1 2 . Hover . | . . . . Flight . | . . . . Utility 8 | 1 3 1 3 Device 2 | . . . 2 Storage 3 | 1 2 . . Processor 1 | . 1 . . Hackware . | . . . . Protection 2 | . . 1 1 Artifact . | . . . . Weapon 8 | 3 . 4 1 Energy Gun 1 | . . 1 . Energy Cannon . | . . . . Ballistic Gun 3 | 3 . . . Ballistic Cannon . | . . . . Launcher 3 | . . 2 1 Special Weapon . | . . . . Impact Weapon 1 | . . 1 . Slashing Weapon . | . . . . Piercing Weapon . | . . . . Special Melee Weapon . | . . . . Unidentified Prototypes . | . . . . Parts Lost 15 | . . 1 14 Power 2 | . . . 2 Propulsion 4 | . . 1 3 Utility 4 | . . . 4 Weapon 5 | . . . 5 Highest Loss Streak 12 | . . 1 12 To Critical Strikes . | . . . . Average Backups 10 | 4 8 11 12 Power . | . . . . Propulsion 1 | 3 2 . . Utility 2 | . 1 3 3 Weapon 5 | . 4 6 8 Tool/Special . | . . . . Unused Backups 10 | . 3 . 7 Power 1 | . 1 . . Propulsion 2 | . 2 . . Utility 2 | . . . 2 Weapon 5 | . . . 5 Tool/Special . | . . . . Average Slot Usage (%) 94 | . 97 95 85 Engine 3 | . 14 . . Core 7 | . . 10 8 Treads 20 | . 21 21 13 Wheel 9 | . 6 10 7 Device 1 | . . . 7 Storage 11 | . 14 11 9 Processor 5 | . 11 3 . Protection 6 | . . 7 15 Energy Gun 2 | . . 1 7 Ballistic Gun 21 | . 28 23 7 Launcher 1 | . . 1 . Impact Weapon 2 | . . 2 8 Peak Build Rating 18 | 6 8 15 18 Average Rating 11 | 4 7 12 15 On Entrance 7 | . 6 8 15 Naked Turns . | . . . . Heaviest Build 48 | 13 48 39 45 Greatest Support 40 | 40 40 40 10 Greatest Overweight (x) 12 | . 2 3 12 Average Overweight (x) 1 | . 1 2 4 Largest Inventory Capacity 20 | 8 20 20 15 Average Capacity 14 | 6 14 15 15 Most Carried 14 | 7 10 14 13 Average Carried 10 | 4 8 11 12 Final Capacity 15 | 8 15 15 15 Final Carried 13 | 6 10 13 11 Class Distribution -------------------- 79% | Mutant 10% | Tank 9% | Gunner Dominant Class ---------------- Mutant | -10/Materials Mutant | -9/Materials Mutant | -8/Materials Resources | -11 -10 -9 -8 ----------- Run | Yrd Mat Mat Mat Matter Collected 619 | 258 94 158 109 Remotely . | . . . . Salvage Created 437 | . 102 226 109 Parts 34 | . 6 27 1 Haulers Intercepted . | . . . . Recyclers Shooed . | . . . . Parts Field Recycled . | . . . . Retrieved Matter . | . . . . Parts Self-Destructed . | . . . . Prevented . | . . . . Kills | -11 -10 -9 -8 ------- Run | Yrd Mat Mat Mat Combat Hostiles Destroyed 19 | . 2 14 3 Melee 1 | . . 1 . Guns 5 | . 2 3 . AOE 10 | . . 8 2 Classes Destroyed 8 | . 1 6 1 Worker 2 | . . 2 . Builder 1 | . . 1 . Operator 1 | . . 1 . Watcher 1 | . . 1 . Swarmer 10 | . . 10 . Grunt 6 | . 2 2 2 Brawler 1 | . . . 1 Sentry 2 | . . 2 . Best Kill Streak 11 | . 2 11 2 Combat Bots Only 8 | . 2 8 2 Max Kills in Single Turn 4 | . 1 4 2 Gunslinging . | . . . . Exploded 2 | . . 2 2 Melee 1 | . . 1 . Uniques/NPCs Destroyed . | . . . . Combat | -11 -10 -9 -8 -------- Run | Yrd Mat Mat Mat Hostile Shots Fired 241 | . 15 67 159 Missed 63 | . 7 11 45 Hits 178 | . 8 56 114 Melee 7 | . . . 7 Projectile 171 | . 8 56 107 Critical Strikes 13 | . . 3 10 Damage Taken 2603 | . 122 689 1792 Core 658 | . 16 83 559 Absorbed by Shields . | . . . . Regen/Repaired (Parts) 43 | . . 43 . Core Remaining (%) 90 | 100 93 79 . Volleys Fired 36 | 4 10 16 6 Largest 3 | 2 2 3 3 Hottest 106 | 40 40 70 106 Shots Fired 74 | 5 20 36 13 Gun 65 | 5 20 29 11 Cannon . | . . . . Launcher 9 | . . 7 2 Special . | . . . . Kinetic 60 | 5 20 29 6 Thermal 5 | . . . 5 Explosive 8 | . . 7 1 Electromagnetic 1 | . . . 1 Robot Hit Streak 5 | 1 5 4 5 Robot Miss Streak 2 | 2 2 2 1 Penetration Max . | . . . . Secondary Targets 1 | . 1 . . Max Gunslinging Chain 1 | . 1 . . Shots Hit Robots 61 | 2 14 28 17 Core Hits 33 | 1 5 21 6 Critical Kills . | . . . . Critical Parts Destroyed 4 | . . 2 2 Critical Strikes 4 | . . 2 2 Smash 4 | . . 2 2 Melee Attacks 41 | . . 21 20 Impact 41 | . . 21 20 Slashing . | . . . . Piercing . | . . . . Sneak Attacks 1 | . . 1 . Combat Hostiles 1 | . . 1 . Follow-up Attacks . | . . . . Damage Inflicted 1930 | 23 147 1286 474 Guns 396 | 21 147 130 98 Cannons . | . . . . Explosions 948 | . . 774 174 Melee 584 | . . 382 202 Ramming 2 | 2 . . . Kinetic 338 | 21 147 130 40 Thermal 58 | . . . 58 Explosive 862 | . . 774 88 Electromagnetic 86 | . . . 86 Impact 584 | . . 382 202 Slashing . | . . . . Piercing . | . . . . Highest Corruption 2 | . . . 2 Average Corruption 2 | . . . 2 Corruption Purged . | . . . . Corruption Blocked . | . . . . Effects 4 | . . . 4 Message Errors 1 | . . . 1 Matter Fused 1 | . . . 1 Energy Discharges 1 | . . . 1 Misfires 1 | . . . 1 Overload Shots . | . . . . Overflow Damage 169 | . . 121 48 Projectiles . | . . . . Explosions 12 | . . 12 . Melee 157 | . . 109 48 Knockbacks . | . . . . Impact . | . . . . Kinetic . | . . . . Secondary . | . . . . Self-Inflicted Damage 149 | . . 140 9 Shots 7 | . . 6 1 Rammed 2 | 2 . . . Targets Rammed 2 | 2 . . . Kicked . | . . . . Crushed . | . . . . Highest Temperature 187 | . 15 41 187 Average Temperature 46 | . 9 19 75 Received Heat Transfer 1119 | . 69 141 909 Siege Activations . | . . . . Martial Activations . | . . . . Shielding Activations . | . . . . Robots Disrupted . | . . . . Combat Hostiles . | . . . . Robots Corrupted 3 | . . 2 1 Combat Hostiles 3 | . . 2 1 Parts Fried 3 | . . 3 . Impact Corruptions 7 | . . 5 2 Robots Melted . | . . . . Combat Hostiles . | . . . . Parts Melted . | . . . . Heat Transferred 148 | . . . 148 Parts Sabotaged . | . . . . Parts Stolen . | . . . . Parts Stripped . | . . . . Power Chain Reactions . | . . . . Alert | -11 -10 -9 -8 ------- Run | Yrd Mat Mat Mat Maximum Alert Level 1 | . . 1 . Low Security (%) 98 | 100 100 97 100 Level 1 1 | . . 2 . Level 2 . | . . . . Level 3 . | . . . . Level 4 . | . . . . Level 5 . | . . . . High Security . | . . . . Max Security . | . . . . Peak Influence 206 | . 50 206 109 Initial 74 | . . . 74 Average 43 | . 6 63 61 Influence Increases 613 | . 88 408 117 Destroy 0b10 Robot/C 380 | . 40 280 60 Destroy 0b10 Robot/NC 25 | . . 25 . Destroy Leader 72 | . 10 52 10 Successful Hack 40 | . 38 2 . Destroy Structure 51 | . . 34 17 Partial Spotted 15 | . . 15 . Lose Combat Pursuer 30 | . . . 30 Influence Decreases 613 | . 88 232 293 Entered New Map 102 | . . . 102 Time Decay 430 | . 88 222 120 Lost Part 81 | . . 10 71 Squads Dispatched 2 | . . . 2 Investigation . | . . . . Extermination . | . . . . Reinforcement 2 | . . . 2 Assault . | . . . . Garrison . | . . . . Intercept . | . . . . Searches Triggered . | . . . . Construction Impeded 2 | . . . 2 Haulers Reinforced . | . . . . Active Scanning Responses . | . . . . Cargo Convoy Interrupts . | . . . . Stealth | -11 -10 -9 -8 --------- Run | Yrd Mat Mat Mat Distress Signals 1 | . . 1 . Communications Jammed . | . . . . Distress Signals . | . . . . Times Spotted 33 | . 2 19 12 Peak Tracking Total 9 | . 2 9 8 Tactical Retreats 2 | . . . 2 Traps | -11 -10 -9 -8 ------- Run | Yrd Mat Mat Mat Traps Triggered . | . . . . Indirectly . | . . . . Trap Hack Attempts . | . . . . Triggered . | . . . . Disarmed . | . . . . Reprogrammed . | . . . . Reused . | . . . . Traps Extracted . | . . . . Installed . | . . . . Triggered . | . . . . Machines | -11 -10 -9 -8 ---------- Run | Yrd Mat Mat Mat Machines Disabled . | . . . . Max in Single Turn . | . . . . Machines Repaired . | . . . . Machines Dismantled . | . . . . Machines Sabotaged . | . . . . Overloaded Fab Kills . | . . . . Hacking | -11 -10 -9 -8 --------- Run | Yrd Mat Mat Mat Machines Accessed 14 | . 6 7 1 Terminals 7 | . 5 2 . Fabricators . | . . . . Repair Stations 2 | . . 2 . Recycling Units 3 | . 1 1 1 Scanalyzers 2 | . . 2 . Garrison Access . | . . . . Total Hacks 28 | . 9 18 1 Successful 18 | . 5 12 1 Failed 10 | . 4 6 . Catastrophic 3 | . 1 2 . Database Lockouts . | . . . . Manual 2 | . 2 . . Terminals 11 | . 8 3 . Fabricators . | . . . . Repair Stations 6 | . . 6 . Recycling Units 3 | . 1 1 1 Scanalyzers 8 | . . 8 . Garrison Access . | . . . . Terminal Hacks 5 | . 4 1 . Prototype ID Bank 2 | . 2 . . Level Access Points 1 | . 1 . . Hauler Manifests 1 | . . 1 . Zone Layout 1 | . 1 . . Fabricator Hacks . | . . . . Repair Station Hacks 2 | . . 2 . Scan Component 1 | . . 1 . Repair 1 | . . 1 . Recycling Unit Hacks 3 | . 1 1 1 Retrieve Components 3 | . 1 1 1 Scanalyzer 8 | . . 8 . Insert Component 4 | . . 4 . Analyze 4 | . . 4 . Garrison Access Hacks . | . . . . Unauthorized Hacks . | . . . . Terminals . | . . . . Fabricators . | . . . . Repair Stations . | . . . . Recycling Units . | . . . . Scanalyzers . | . . . . Garrison Access . | . . . . Data Cores Recovered . | . . . . Used . | . . . . Hacking Detections 10 | . 3 6 1 Full Trace Events . | . . . . Feedback Events . | . . . . Feedback Blocked . | . . . . Robot Schematics Acquired . | . . . . Robots Built . | . . . . Authchips . | . . . . Time . | . . . . Total Robot Build Rating . | . . . . Part Schematics Acquired 4 | . . 4 . Parts Built . | . . . . Authchips . | . . . . Time . | . . . . Total Part Build Rating . | . . . . Parts Repaired 1 | . . 1 . Time 44 | . . 44 . Parts Recycled . | . . . . Recycled Matter . | . . . . Retrieved Matter . | . . . . Retrieved Components 8 | . 5 2 1 Parts Scanalyzed 4 | . . 4 . Part Schematics Acquired 4 | . . 4 . Parts Damaged 1 | . . 1 . Bothacking | -11 -10 -9 -8 ------------ Run | Yrd Mat Mat Mat Used RIF Installer . | . . . . Robots Hacked . | . . . . Non-combat . | . . . . Combat . | . . . . Robot Hacks Applied . | . . . . Relay Couplers Released . | . . . . Fabnet Peak Effective % . | . . . . Robots Rewired . | . . . . Allies Hacked . | . . . . Hacks Repelled . | . . . . Allies | -11 -10 -9 -8 -------- Run | Yrd Mat Mat Mat Total Allies . | . . . . Largest Group . | . . . . Highest-Rated Group . | . . . . Highest-Rated Ally . | . . . . Total Orders . | . . . . Ally Attacks . | . . . . Total Damage . | . . . . Kills . | . . . . Allies Corrupted . | . . . . Allies Melted . | . . . . Intel | -11 -10 -9 -8 ------- Run | Yrd Mat Mat Mat Active Infowar (turns) 237 | . . . 237 Terrain 186 | . . . 186 Structural 51 | . . . 51 Robot Analysis Total . | . . . . Derelict Logs Recovered . | . . . . Drone Launches . | . . . . Drone Recoveries . | . . . . Exploration | -11 -10 -9 -8 ------------- Run | Yrd Mat Mat Mat Turns Passed 1857 | 138 477 952 290 Spaces Moved 1091 | 77 295 596 123 Core 23 | 14 . . 9 Treads 201 | 63 136 2 . Legs . | . . . . Wheels 867 | . 159 594 114 Hover . | . . . . Flight . | . . . . Fastest Speed 50 | 50 100 115 140 Average Speed 136 | 140 146 125 163 Slowest Speed 650 | 160 240 160 650 Overloaded Moves . | . . . . Propulsion Burnouts . | . . . . Robots Hopped . | . . . . Potential Cave-ins . | . . . . Cave-ins Triggered . | . . . . Exploration Rate (%) 23 | 7 37 34 14 Regions Visited 3 Branch Regions . Pre-discovered Areas . | . . . . Known Exits Taken 1 | . 1 . . Unknown Exits Taken 2 | 1 . 1 . Scrap Searched . | . . . . Spaces Dug 19 | . . 7 12 Terrain Destroyed 50 | . . 34 16 Melee 19 | . . 7 12 Projectile . | . . . . AOE 31 | . . 27 4 Terrain Rammed . | . . . . Walls Destroyed . | . . . . Machines Disabled . | . . . . Actions | -11 -10 -9 -8 --------- Run | Yrd Mat Mat Mat Total 1316 | 99 323 731 163 Wait 60 | . . 57 3 Move 1088 | 76 294 595 123 Hop . | . . . . Pick Up 26 | 7 9 7 3 Fast Attach 11 | 6 1 3 1 Attach 14 | 1 . 8 5 Detach 9 | 1 . 8 . Swap 19 | 1 4 12 2 Drop 10 | 1 5 4 . Fire 36 | 4 10 16 6 Melee 41 | . . 21 20 Ram . | . . . . Kick . | . . . . Crush 2 | 2 . . . Escape Stasis . | . . . . Rewire . | . . . . Trap . | . . . . Miscellaneous . | . . . . Route ------- -11/Scrapyard -10/Materials (discovered 3 exits: *Mat x3) -9/Materials -8/Materials History --------- Turn | Location | Event 9 | -11/Scrapyard | Discovered new exit (range 14) 139 | -11/Scrapyard | Entered Materials 140 | -10/Materials | Met a group of wandering Federalists 316 | -10/Materials | Build established: Mutant 428 | -10/Materials | Discovered new exit (range 13) 499 | -10/Materials | Identified exit to Materials 616 | -10/Materials | Entered another Materials area 616 | -9/Materials | Evolved 2 slots: Propulsion x1, Weapon x1 1254 | -9/Materials | Repaired Broken Maul 1337 | -9/Materials | Destroyed 8 combat bots 1410 | -9/Materials | Discovered new exit (range 12) 1568 | -9/Materials | Entered another Materials area 1568 | -8/Materials | Evolved 2 slots: Utility x2 1835 | -8/Materials | Core integrity fell below 50% 1854 | -8/Materials | Core integrity fell below 20% 1858 | -8/Materials | Destroyed by G-47 Trooper with Particle Gun Last Messages --------------- 01809_ Lgt. Treads destroyed. 01810_ Hrd. Light Armor Plating destroyed. 01818_ Beam Rifle destroyed. 01818_ Nuclear Core destroyed. 01825_ U-05 Engineer builds a Wall. 01828_ Terrain Scanner destroyed. 01828_ Critical hit (Burn: +37). 01832_ System corrupted: Matter fused (-6). 01835_ Acquired Shock Bomb Launcher. 01838_ ALERT: Construction progress impeded, dispatching reinforcements to local area. 01839_ Critical hit (Burn: +37). 01843_ Shock Bomb Launcher destroyed. 01844_ Rocket Launcher destroyed. 01846_ Maul destroyed. 01847_ Critical hit (Burn: +37). 01851_ O8LUJU1T7/LA